[Event "Titled Tuesday Blitz June 21 Early 2022"]
[White "Kobalia, Mikhail"]
[Black "Karas, Marek"]
[WhiteFideId "4119150"]
[BlackFideId "14928558"]
[WhiteElo "2667"]
[BlackElo "2271"]
[Result "1-0"]
[Round "01"]
[TimeControl "180+1"]
[Date "2022.06.22"]
[WhiteClock "0:00:47"]
[BlackClock "0:00:02"]

1. e4 {[%clk 0:02:56]}  e6 {[%clk 0:03:00]} 2. d3 {[%clk 0:02:55]}  d5 {[%clk 0:03:00]} 3. Nd2 {[%clk 0:02:55]}  Nf6 {[%clk 0:02:59]} 4. Ngf3 {[%clk 0:02:55]}  Nc6 {[%clk 0:03:00]} 5. e5 {[%clk 0:02:55]}  Nd7 {[%clk 0:02:58]} 6. d4 {[%clk 0:02:55]}  f6 {[%clk 0:02:58]} 7. Bb5 {[%clk 0:02:55]}  a6 {[%clk 0:02:53]} 8. Bxc6 {[%clk 0:02:54]}  bxc6 {[%clk 0:02:54]} 9. O-O {[%clk 0:02:54]}  fxe5 {[%clk 0:02:47]} 10. dxe5 {[%clk 0:02:54]}  Be7 {[%clk 0:02:46]} 11. Nd4 {[%clk 0:02:53]}  Nb8 {[%clk 0:02:45]} 12. Qh5+ {[%clk 0:02:51]}  g6 {[%clk 0:02:43]} 13. Qg4 {[%clk 0:02:49]}  Qd7 {[%clk 0:02:36]} 14. N2f3 {[%clk 0:02:47]}  c5 {[%clk 0:02:34]} 15. Ne2 {[%clk 0:02:47]}  O-O {[%clk 0:02:18]} 16. Bg5 {[%clk 0:02:46]}  Nc6 {[%clk 0:02:13]} 17. Nf4 {[%clk 0:02:44]}  Bxg5 {[%clk 0:02:07]} 18. Qxg5 {[%clk 0:02:43]}  Rf5 {[%clk 0:02:04]} 19. Qg3 {[%clk 0:02:43]}  Qf7 {[%clk 0:01:52]} 20. Ng5 {[%clk 0:02:32]}  Qe7 {[%clk 0:01:49]} 21. h4 {[%clk 0:02:31]}  Rxe5 {[%clk 0:01:31]} 22. Rae1 {[%clk 0:02:30]}  Qf6 {[%clk 0:01:24]} 23. Rxe5 {[%clk 0:02:12]}  Qxe5 {[%clk 0:01:20]} 24. h5 {[%clk 0:02:10]}  Ne7 {[%clk 0:00:47]} 25. Nxg6 {[%clk 0:01:01]}  Nxg6 {[%clk 0:00:39]} 26. hxg6 {[%clk 0:01:01]}  Qxg3 {[%clk 0:00:30]} 27. gxh7+ {[%clk 0:01:00]}  Kh8 {[%clk 0:00:31]} 28. fxg3 {[%clk 0:01:00]}  Bd7 {[%clk 0:00:27]} 29. Rf7 {[%clk 0:00:59]}  Bb5 {[%clk 0:00:14]} 30. Rxc7 {[%clk 0:00:56]}  Re8 {[%clk 0:00:09]} 31. Nf7+ {[%clk 0:00:52]}  Kxh7 {[%clk 0:00:06]} 32. Nd6+ {[%clk 0:00:52]}  Kg6 {[%clk 0:00:06]} 33. Nxe8 {[%clk 0:00:52]}  Bxe8 {[%clk 0:00:07]} 34. Rxc5 {[%clk 0:00:52]}  Kf5 {[%clk 0:00:06]} 35. Kf2 {[%clk 0:00:51]}  Ke4 {[%clk 0:00:05]} 36. Rc3 {[%clk 0:00:49]}  d4 {[%clk 0:00:05]} 37. Rf3 {[%clk 0:00:49]}  e5 {[%clk 0:00:04]} 38. g4 {[%clk 0:00:49]}  Kd5 {[%clk 0:00:02]} 39. g5 {[%clk 0:00:49]}  e4 {[%clk 0:00:02]} 40. Rf5+ {[%clk 0:00:49]}  Ke6 {[%clk 0:00:02]} 41. Rf8 {[%clk 0:00:47]} 1-0


[Site "https://www.chess.com"]

[Event "Titled Tuesday Blitz June 21 Early 2022"]
[White "Kopczynski, Michal"]
[Black "Hamidi, Amir Mohammad"]
[WhiteFideId "1124200"]
[BlackFideId "12563285"]
[WhiteElo "2235"]
[BlackElo "2283"]
[Result "1-0"]
[Round "01"]
[TimeControl "180+1"]
[Date "2022.06.22"]
[WhiteClock "0:01:19"]
[BlackClock "0:00:07"]

1. e4 {[%clk 0:02:59]}  c5 {[%clk 0:02:58]} 2. d4 {[%clk 0:02:59]}  cxd4 {[%clk 0:02:59]} 3. c3 {[%clk 0:02:59]}  dxc3 {[%clk 0:02:59]} 4. Nxc3 {[%clk 0:03:00]}  Nc6 {[%clk 0:03:00]} 5. f4 {[%clk 0:03:01]}  d6 {[%clk 0:03:01]} 6. Nf3 {[%clk 0:03:01]}  g6 {[%clk 0:03:01]} 7. Bc4 {[%clk 0:03:01]}  Bg7 {[%clk 0:03:02]} 8. O-O {[%clk 0:03:02]}  Nf6 {[%clk 0:02:58]} 9. Kh1 {[%clk 0:03:02]}  O-O {[%clk 0:02:56]} 10. Qe1 {[%clk 0:03:03]}  a6 {[%clk 0:02:54]} 11. Qh4 {[%clk 0:03:01]}  b5 {[%clk 0:02:54]} 12. Bb3 {[%clk 0:02:59]}  Bb7 {[%clk 0:02:51]} 13. f5 {[%clk 0:02:54]}  b4 {[%clk 0:02:46]} 14. fxg6 {[%clk 0:02:41]}  bxc3 {[%clk 0:02:43]} 15. Ng5 {[%clk 0:02:30]}  h6 {[%clk 0:02:16]} 16. Nxf7 {[%clk 0:02:22]}  Rxf7 {[%clk 0:02:14]} 17. Bxf7+ {[%clk 0:02:11]}  Kf8 {[%clk 0:02:13]} 18. Bxh6 {[%clk 0:01:35]}  cxb2 {[%clk 0:00:44]} 19. Rab1 {[%clk 0:01:34]}  e5 {[%clk 0:00:06]} 20. Rxf6 {[%clk 0:01:20]}  Qxf6 {[%clk 0:00:07]} 21. Qxf6 {[%clk 0:01:19]} 1-0


[Site "https://www.chess.com"]

[Event "Titled Tuesday Blitz June 21 Early 2022"]
[White "Kosakowski, Jakub"]
[Black "Ferreira, Vitor Hugo Vieira"]
[WhiteFideId "1185080"]
[BlackFideId "2119765"]
[WhiteElo "2476"]
[BlackElo "2165"]
[Result "1-0"]
[Round "01"]
[TimeControl "180+1"]
[Date "2022.06.21"]
[WhiteClock "0:01:27"]
[BlackClock "0:01:37"]

1. Nf3 {[%clk 0:02:59]}  Nf6 {[%clk 0:02:59]} 2. d4 {[%clk 0:02:58]}  d5 {[%clk 0:02:59]} 3. c4 {[%clk 0:02:58]}  c6 {[%clk 0:02:59]} 4. Nc3 {[%clk 0:02:56]}  e6 {[%clk 0:02:59]} 5. e3 {[%clk 0:02:56]}  Nbd7 {[%clk 0:02:58]} 6. Qc2 {[%clk 0:02:56]}  Bd6 {[%clk 0:02:58]} 7. Bd2 {[%clk 0:02:56]}  O-O {[%clk 0:02:58]} 8. Rc1 {[%clk 0:02:53]}  Re8 {[%clk 0:02:51]} 9. Bd3 {[%clk 0:02:46]}  dxc4 {[%clk 0:02:51]} 10. Bxc4 {[%clk 0:02:47]}  e5 {[%clk 0:02:51]} 11. O-O {[%clk 0:02:45]}  e4 {[%clk 0:02:48]} 12. Ng5 {[%clk 0:02:39]}  Bxh2+ {[%clk 0:02:48]} 13. Kh1 {[%clk 0:02:39]}  Ng4 {[%clk 0:02:43]} 14. Ncxe4 {[%clk 0:02:28]}  Rxe4 {[%clk 0:02:40]} 15. Qxe4 {[%clk 0:02:24]}  Ndf6 {[%clk 0:02:24]} 16. Nxf7 {[%clk 0:02:12]}  Nxe4 {[%clk 0:02:21]} 17. Nxd8+ {[%clk 0:02:10]}  Kf8 {[%clk 0:02:22]} 18. Bb4+ {[%clk 0:02:06]}  Ke8 {[%clk 0:02:21]} 19. Ne6 {[%clk 0:01:59]}  Bb8 {[%clk 0:02:02]} 20. Rc2 {[%clk 0:01:47]}  a5 {[%clk 0:01:53]} 21. Nxg7+ {[%clk 0:01:43]}  Kd8 {[%clk 0:01:52]} 22. Be1 {[%clk 0:01:40]}  b5 {[%clk 0:01:50]} 23. Bd3 {[%clk 0:01:34]}  Ngf6 {[%clk 0:01:49]} 24. f3 {[%clk 0:01:31]}  Nd6 {[%clk 0:01:41]} 25. Bh4 {[%clk 0:01:28]}  Ke7 {[%clk 0:01:39]} 26. Nh5 {[%clk 0:01:27]}  Ne8 {[%clk 0:01:38]} 27. Nxf6 {[%clk 0:01:27]}  Nxf6 {[%clk 0:01:38]} 28. Rxc6 {[%clk 0:01:28]}  Be6 {[%clk 0:01:37]} 29. d5 {[%clk 0:01:27]} 1-0


[Site "https://www.chess.com"]

[Event "Titled Tuesday Blitz June 21 Early 2022"]
[White "Kosteniuk, Alexandra"]
[Black "Kozelov, Roman"]
[WhiteFideId "4128125"]
[BlackFideId "14133377"]
[WhiteElo "2469"]
[BlackElo "2149"]
[Result "1-0"]
[Round "01"]
[TimeControl "180+1"]
[Date "2022.06.22"]
[WhiteClock "0:00:21"]
[BlackClock "0:00:08"]

1. e4 {[%clk 0:02:59]}  e6 {[%clk 0:02:59]} 2. d4 {[%clk 0:02:59]}  d5 {[%clk 0:03:00]} 3. Nc3 {[%clk 0:02:59]}  Bb4 {[%clk 0:02:59]} 4. a3 {[%clk 0:02:58]}  Bxc3+ {[%clk 0:02:59]} 5. bxc3 {[%clk 0:02:59]}  Ne7 {[%clk 0:02:59]} 6. Qg4 {[%clk 0:02:58]}  Kf8 {[%clk 0:02:58]} 7. e5 {[%clk 0:02:52]}  c5 {[%clk 0:02:58]} 8. h4 {[%clk 0:02:50]}  Qa5 {[%clk 0:02:58]} 9. Bd2 {[%clk 0:02:49]}  Qa4 {[%clk 0:02:58]} 10. Bd3 {[%clk 0:02:43]}  Nbc6 {[%clk 0:02:58]} 11. Nf3 {[%clk 0:02:43]}  c4 {[%clk 0:02:57]} 12. Be2 {[%clk 0:02:43]}  Qxc2 {[%clk 0:02:57]} 13. h5 {[%clk 0:02:41]}  h6 {[%clk 0:02:56]} 14. Nh4 {[%clk 0:02:36]}  b5 {[%clk 0:02:54]} 15. Bd1 {[%clk 0:02:30]}  Qe4+ {[%clk 0:02:50]} 16. Qxe4 {[%clk 0:02:29]}  dxe4 {[%clk 0:02:51]} 17. Bc2 {[%clk 0:02:29]}  Bb7 {[%clk 0:02:50]} 18. Bxe4 {[%clk 0:02:29]}  Rb8 {[%clk 0:02:45]} 19. a4 {[%clk 0:02:05]}  Nxd4 {[%clk 0:02:18]} 20. cxd4 {[%clk 0:02:00]}  Bxe4 {[%clk 0:02:17]} 21. Bb4 {[%clk 0:01:31]}  bxa4 {[%clk 0:01:45]} 22. Rxa4 {[%clk 0:01:28]}  Rb7 {[%clk 0:01:27]} 23. Kd2 {[%clk 0:01:24]}  Ke8 {[%clk 0:01:25]} 24. Bxe7 {[%clk 0:01:09]}  Kxe7 {[%clk 0:01:24]} 25. Rha1 {[%clk 0:01:07]}  Ra8 {[%clk 0:01:08]} 26. Rxc4 {[%clk 0:01:03]}  a5 {[%clk 0:01:05]} 27. Rca4 {[%clk 0:01:02]}  Rb5 {[%clk 0:00:59]} 28. Nf3 {[%clk 0:00:46]}  Bc6 {[%clk 0:00:55]} 29. R4a3 {[%clk 0:00:44]}  a4 {[%clk 0:00:53]} 30. Kc3 {[%clk 0:00:39]}  Rab8 {[%clk 0:00:50]} 31. Nd2 {[%clk 0:00:37]}  Rb2 {[%clk 0:00:46]} 32. f3 {[%clk 0:00:36]}  R8b6 {[%clk 0:00:44]} 33. R1a2 {[%clk 0:00:31]}  Rxa2 {[%clk 0:00:38]} 34. Rxa2 {[%clk 0:00:32]}  Rb8 {[%clk 0:00:37]} 35. Ra3 {[%clk 0:00:31]}  Rb7 {[%clk 0:00:37]} 36. Nc4 {[%clk 0:00:30]}  Rb1 {[%clk 0:00:34]} 37. Nd6 {[%clk 0:00:26]}  Rg1 {[%clk 0:00:22]} 38. Ra2 {[%clk 0:00:26]}  Rh1 {[%clk 0:00:19]} 39. Kb4 {[%clk 0:00:26]}  Rxh5 {[%clk 0:00:17]} 40. Rc2 {[%clk 0:00:27]}  Bd7 {[%clk 0:00:17]} 41. Rc7 {[%clk 0:00:24]}  f6 {[%clk 0:00:15]} 42. Nc4 {[%clk 0:00:23]}  Rh2 {[%clk 0:00:14]} 43. Nb6 {[%clk 0:00:20]}  Rxg2 {[%clk 0:00:12]} 44. Rxd7+ {[%clk 0:00:20]}  Kf8 {[%clk 0:00:11]} 45. Rd8+ {[%clk 0:00:20]}  Kf7 {[%clk 0:00:11]} 46. Rd7+ {[%clk 0:00:20]}  Kg6 {[%clk 0:00:11]} 47. d5 {[%clk 0:00:21]}  exd5 {[%clk 0:00:11]} 48. e6 {[%clk 0:00:21]}  Re2 {[%clk 0:00:10]} 49. e7 {[%clk 0:00:21]}  Kf7 {[%clk 0:00:10]} 50. Nxd5 {[%clk 0:00:21]}  g5 {[%clk 0:00:09]} 51. Rd8 {[%clk 0:00:21]}  h5 {[%clk 0:00:08]} 52. Rf8+ {[%clk 0:00:22]}  Kg7 {[%clk 0:00:08]} 53. e8=Q {[%clk 0:00:21]}  Rxe8 {[%clk 0:00:08]} 54. Rxe8 {[%clk 0:00:21]}  g4 {[%clk 0:00:08]} 55. fxg4 {[%clk 0:00:21]}  hxg4 {[%clk 0:00:08]} 56. Nf4 {[%clk 0:00:22]}  Kh6 {[%clk 0:00:08]} 57. Rg8 {[%clk 0:00:21]}  f5 {[%clk 0:00:08]} 58. Kxa4 {[%clk 0:00:21]} 1-0


[Site "https://www.chess.com"]

[Event "Titled Tuesday Blitz June 21 Early 2022"]
[White "Kozlov, Oleg"]
[Black "Ciuffoletti, Paolo"]
[WhiteFideId "4104544"]
[BlackFideId "807630"]
[WhiteElo "2132"]
[BlackElo "2143"]
[Result "1-0"]
[Round "01"]
[TimeControl "180+1"]
[Date "2022.06.22"]
[WhiteClock "0:00:23"]
[BlackClock "0:00:06"]

1. d4 {[%clk 0:02:56]}  d5 {[%clk 0:02:59]} 2. c4 {[%clk 0:02:55]}  c6 {[%clk 0:02:59]} 3. Nf3 {[%clk 0:02:55]}  Nf6 {[%clk 0:02:59]} 4. g3 {[%clk 0:02:55]}  e6 {[%clk 0:02:51]} 5. Bg2 {[%clk 0:02:55]}  dxc4 {[%clk 0:02:51]} 6. Ne5 {[%clk 0:02:56]}  b5 {[%clk 0:02:35]} 7. Nxc6 {[%clk 0:02:46]}  Qb6 {[%clk 0:02:33]} 8. Nxb8 {[%clk 0:02:09]}  Rxb8 {[%clk 0:02:32]} 9. O-O {[%clk 0:02:10]}  Be7 {[%clk 0:02:29]} 10. Bf4 {[%clk 0:02:10]}  Bd6 {[%clk 0:02:22]} 11. Nc3 {[%clk 0:02:10]}  Bxf4 {[%clk 0:02:16]} 12. gxf4 {[%clk 0:02:11]}  O-O {[%clk 0:02:16]} 13. e3 {[%clk 0:02:11]}  Bb7 {[%clk 0:02:14]} 14. a4 {[%clk 0:01:58]}  b4 {[%clk 0:02:02]} 15. a5 {[%clk 0:01:57]}  Qa6 {[%clk 0:02:01]} 16. Bxb7 {[%clk 0:01:44]}  Qxb7 {[%clk 0:01:38]} 17. Na4 {[%clk 0:01:42]}  c3 {[%clk 0:01:19]} 18. bxc3 {[%clk 0:01:40]}  bxc3 {[%clk 0:01:14]} 19. Nxc3 {[%clk 0:01:41]}  Qb4 {[%clk 0:01:09]} 20. Qd3 {[%clk 0:01:32]}  Rbc8 {[%clk 0:01:02]} 21. Nb5 {[%clk 0:01:19]}  a6 {[%clk 0:00:46]} 22. Rfb1 {[%clk 0:01:18]}  Qe7 {[%clk 0:00:38]} 23. Na3 {[%clk 0:01:18]}  Nd5 {[%clk 0:00:25]} 24. Nc4 {[%clk 0:01:18]}  Qh4 {[%clk 0:00:24]} 25. Nb6 {[%clk 0:01:09]}  Rc6 {[%clk 0:00:20]} 26. Rc1 {[%clk 0:00:39]}  Qg4+ {[%clk 0:00:15]} 27. Kf1 {[%clk 0:00:39]}  Qh3+ {[%clk 0:00:15]} 28. Ke2 {[%clk 0:00:39]}  Rxc1 {[%clk 0:00:15]} 29. Rxc1 {[%clk 0:00:39]}  Qxh2 {[%clk 0:00:14]} 30. Nxd5 {[%clk 0:00:39]}  exd5 {[%clk 0:00:14]} 31. Qxa6 {[%clk 0:00:39]}  Qh5+ {[%clk 0:00:13]} 32. Kd2 {[%clk 0:00:39]}  Qf3 {[%clk 0:00:13]} 33. Qe2 {[%clk 0:00:39]}  Qe4 {[%clk 0:00:13]} 34. f3 {[%clk 0:00:36]}  Qe6 {[%clk 0:00:11]} 35. Qd3 {[%clk 0:00:36]}  h6 {[%clk 0:00:11]} 36. e4 {[%clk 0:00:32]}  Ra8 {[%clk 0:00:11]} 37. Rc5 {[%clk 0:00:29]}  Qf6 {[%clk 0:00:09]} 38. Ke3 {[%clk 0:00:29]}  dxe4 {[%clk 0:00:08]} 39. fxe4 {[%clk 0:00:27]}  Qh4 {[%clk 0:00:07]} 40. e5 {[%clk 0:00:23]}  Qg3+ {[%clk 0:00:07]} 41. Ke4 {[%clk 0:00:24]}  Qg2+ {[%clk 0:00:06]} 42. Ke3 {[%clk 0:00:23]}  Qg3+ {[%clk 0:00:07]} 43. Kd2 {[%clk 0:00:23]}  Qf2+ {[%clk 0:00:07]} 44. Kc3 {[%clk 0:00:24]}  Qe1+ {[%clk 0:00:07]} 45. Qd2 {[%clk 0:00:23]}  Qa1+ {[%clk 0:00:06]} 46. Kd3 {[%clk 0:00:24]}  Rxa5 {[%clk 0:00:06]} 47. Rxa5 {[%clk 0:00:23]}  Qb2 {[%clk 0:00:06]} 48. Qxb2 {[%clk 0:00:23]} 1-0


[Site "https://www.chess.com"]

[Event "Titled Tuesday Blitz June 21 Early 2022"]
[White "Krallis, Christos"]
[Black "Rustemov, Alexander"]
[WhiteFideId "4298896"]
[BlackFideId "4119002"]
[WhiteElo "2234"]
[BlackElo "2754"]
[Result "1/2-1/2"]
[Round "01"]
[TimeControl "180+1"]
[Date "2022.06.22"]
[WhiteClock "0:00:13"]
[BlackClock "0:00:11"]

1. e4 {[%clk 0:02:59]}  e6 {[%clk 0:02:59]} 2. d4 {[%clk 0:02:58]}  d5 {[%clk 0:03:00]} 3. Nd2 {[%clk 0:02:58]}  dxe4 {[%clk 0:02:58]} 4. Nxe4 {[%clk 0:02:58]}  Bd7 {[%clk 0:02:59]} 5. c4 {[%clk 0:02:55]}  Bb4+ {[%clk 0:02:55]} 6. Bd2 {[%clk 0:02:55]}  Bxd2+ {[%clk 0:02:53]} 7. Qxd2 {[%clk 0:02:56]}  Nf6 {[%clk 0:02:53]} 8. Nxf6+ {[%clk 0:02:48]}  Qxf6 {[%clk 0:02:52]} 9. Nf3 {[%clk 0:02:48]}  Bc6 {[%clk 0:02:48]} 10. Be2 {[%clk 0:02:44]}  O-O {[%clk 0:02:45]} 11. O-O {[%clk 0:02:44]}  Rd8 {[%clk 0:02:44]} 12. Rfd1 {[%clk 0:02:41]}  Nd7 {[%clk 0:02:40]} 13. Qe3 {[%clk 0:02:37]}  Bxf3 {[%clk 0:02:17]} 14. Bxf3 {[%clk 0:02:35]}  c6 {[%clk 0:02:17]} 15. Rd2 {[%clk 0:02:24]}  Nb6 {[%clk 0:02:16]} 16. b3 {[%clk 0:02:23]}  Rd7 {[%clk 0:02:15]} 17. Rad1 {[%clk 0:02:19]}  Rad8 {[%clk 0:02:14]} 18. a4 {[%clk 0:02:16]}  Nc8 {[%clk 0:02:12]} 19. d5 {[%clk 0:02:05]}  cxd5 {[%clk 0:02:09]} 20. cxd5 {[%clk 0:02:05]}  e5 {[%clk 0:02:03]} 21. d6 {[%clk 0:01:47]}  b6 {[%clk 0:01:36]} 22. Bg4 {[%clk 0:00:51]}  Rxd6 {[%clk 0:01:35]} 23. Bxc8 {[%clk 0:00:51]}  Rxd2 {[%clk 0:01:35]} 24. Rxd2 {[%clk 0:00:50]}  Rxc8 {[%clk 0:01:34]} 25. Rd7 {[%clk 0:00:46]}  Qc6 {[%clk 0:01:26]} 26. Rd1 {[%clk 0:00:42]}  Qc2 {[%clk 0:01:19]} 27. Re1 {[%clk 0:00:31]}  Qc3 {[%clk 0:01:19]} 28. Qxc3 {[%clk 0:00:23]}  Rxc3 {[%clk 0:01:20]} 29. f4 {[%clk 0:00:23]}  Rxb3 {[%clk 0:01:12]} 30. Rxe5 {[%clk 0:00:23]}  Kf8 {[%clk 0:01:06]} 31. a5 {[%clk 0:00:23]}  Rb2 {[%clk 0:01:03]} 32. axb6 {[%clk 0:00:22]}  axb6 {[%clk 0:01:03]} 33. h3 {[%clk 0:00:20]}  b5 {[%clk 0:01:02]} 34. Kh2 {[%clk 0:00:20]}  b4 {[%clk 0:01:01]} 35. Rb5 {[%clk 0:00:21]}  b3 {[%clk 0:01:01]} 36. h4 {[%clk 0:00:19]}  g6 {[%clk 0:00:59]} 37. h5 {[%clk 0:00:19]}  Ke7 {[%clk 0:00:56]} 38. hxg6 {[%clk 0:00:18]}  hxg6 {[%clk 0:00:56]} 39. Rb6 {[%clk 0:00:19]}  Rb1 {[%clk 0:00:53]} 40. Kh3 {[%clk 0:00:19]}  Kd7 {[%clk 0:00:51]} 41. Rb7+ {[%clk 0:00:15]}  Ke6 {[%clk 0:00:51]} 42. Kg4 {[%clk 0:00:15]}  f6 {[%clk 0:00:43]} 43. Rb6+ {[%clk 0:00:15]}  Kd5 {[%clk 0:00:41]} 44. Rxf6 {[%clk 0:00:14]}  Kc5 {[%clk 0:00:40]} 45. Rf8 {[%clk 0:00:11]}  Rg1 {[%clk 0:00:39]} 46. Rb8 {[%clk 0:00:09]}  Kc4 {[%clk 0:00:39]} 47. g3 {[%clk 0:00:07]}  Kc3 {[%clk 0:00:40]} 48. Rc8+ {[%clk 0:00:06]}  Kd3 {[%clk 0:00:39]} 49. Rd8+ {[%clk 0:00:07]}  Kc2 {[%clk 0:00:40]} 50. Rc8+ {[%clk 0:00:07]}  Kb1 {[%clk 0:00:40]} 51. Rc6 {[%clk 0:00:07]}  b2 {[%clk 0:00:38]} 52. Rxg6 {[%clk 0:00:08]}  Kc2 {[%clk 0:00:36]} 53. Rc6+ {[%clk 0:00:08]}  Kd3 {[%clk 0:00:36]} 54. Rd6+ {[%clk 0:00:08]}  Ke4 {[%clk 0:00:35]} 55. Re6+ {[%clk 0:00:08]}  Kd5 {[%clk 0:00:35]} 56. Rb6 {[%clk 0:00:08]}  b1=Q {[%clk 0:00:35]} 57. Rxb1 {[%clk 0:00:09]}  Rxb1 {[%clk 0:00:35]} 58. Kf5 {[%clk 0:00:10]}  Kd6 {[%clk 0:00:29]} 59. g4 {[%clk 0:00:10]}  Ke7 {[%clk 0:00:29]} 60. Kg6 {[%clk 0:00:10]}  Kf8 {[%clk 0:00:29]} 61. f5 {[%clk 0:00:10]}  Rb6+ {[%clk 0:00:26]} 62. f6 {[%clk 0:00:10]}  Kg8 {[%clk 0:00:26]} 63. g5 {[%clk 0:00:11]}  Kf8 {[%clk 0:00:25]} 64. Kh7 {[%clk 0:00:11]}  Kf7 {[%clk 0:00:25]} 65. g6+ {[%clk 0:00:11]}  Kxf6 {[%clk 0:00:25]} 66. g7 {[%clk 0:00:11]}  Rb7 {[%clk 0:00:25]} 67. Kh8 {[%clk 0:00:12]}  Rb8+ {[%clk 0:00:11]} 68. g8=Q {[%clk 0:00:12]}  Rxg8+ {[%clk 0:00:11]} 69. Kxg8 {[%clk 0:00:13]} 1/2-1/2


[Site "https://www.chess.com"]

[Event "Titled Tuesday Blitz June 21 Early 2022"]
[White "Lagno, Kateryna"]
[Black "Pourkashiyan, Atousa"]
[WhiteFideId "14109336"]
[BlackFideId "12502014"]
[WhiteElo "2522"]
[BlackElo "2247"]
[Result "0-1"]
[Round "01"]
[TimeControl "180+1"]
[Date "2022.06.22"]
[WhiteClock "0:00:56"]
[BlackClock "0:00:18"]

1. e4 {[%clk 0:03:00]}  e5 {[%clk 0:02:39]} 2. Nf3 {[%clk 0:03:01]}  Nf6 {[%clk 0:02:35]} 3. Nc3 {[%clk 0:03:00]}  Bb4 {[%clk 0:02:31]} 4. Nxe5 {[%clk 0:02:59]}  O-O {[%clk 0:02:28]} 5. Be2 {[%clk 0:02:52]}  Re8 {[%clk 0:02:27]} 6. Nd3 {[%clk 0:02:53]}  Bxc3 {[%clk 0:02:28]} 7. dxc3 {[%clk 0:02:53]}  Nxe4 {[%clk 0:02:29]} 8. c4 {[%clk 0:02:53]}  d6 {[%clk 0:02:28]} 9. O-O {[%clk 0:02:52]}  Nc6 {[%clk 0:02:24]} 10. c3 {[%clk 0:02:47]}  Bf5 {[%clk 0:02:23]} 11. Nf4 {[%clk 0:02:44]}  Ne5 {[%clk 0:02:18]} 12. h3 {[%clk 0:02:41]}  h6 {[%clk 0:02:05]} 13. Nd5 {[%clk 0:02:37]}  Nf6 {[%clk 0:01:53]} 14. Ne3 {[%clk 0:02:31]}  Bg6 {[%clk 0:01:45]} 15. Qb3 {[%clk 0:02:29]}  b6 {[%clk 0:01:40]} 16. Qd1 {[%clk 0:02:05]}  Qd7 {[%clk 0:01:21]} 17. f4 {[%clk 0:02:04]}  Nc6 {[%clk 0:01:17]} 18. f5 {[%clk 0:02:04]}  Bh7 {[%clk 0:01:17]} 19. Bd3 {[%clk 0:01:44]}  Ne5 {[%clk 0:01:15]} 20. Bc2 {[%clk 0:01:44]}  Rad8 {[%clk 0:00:56]} 21. Ba4 {[%clk 0:01:40]}  c6 {[%clk 0:00:55]} 22. Qc2 {[%clk 0:01:37]}  d5 {[%clk 0:00:42]} 23. cxd5 {[%clk 0:01:34]}  Nxd5 {[%clk 0:00:39]} 24. Nxd5 {[%clk 0:01:30]}  Qxd5 {[%clk 0:00:37]} 25. Kh1 {[%clk 0:01:28]}  b5 {[%clk 0:00:31]} 26. Bb3 {[%clk 0:01:28]}  Qd3 {[%clk 0:00:31]} 27. Qf2 {[%clk 0:01:18]}  Nc4 {[%clk 0:00:25]} 28. f6 {[%clk 0:01:10]}  Re2 {[%clk 0:00:22]} 29. Qf4 {[%clk 0:01:06]}  Be4 {[%clk 0:00:21]} 30. Qg4 {[%clk 0:00:56]}  Rxg2 {[%clk 0:00:18]} 0-1


[Site "https://www.chess.com"]

[Event "Titled Tuesday Blitz June 21 Early 2022"]
[White "Li, Zhuoling"]
[Black "Aradhya, Garg"]
[WhiteFideId "8605629"]
[BlackFideId "25006746"]
[WhiteElo "2306"]
[BlackElo "2203"]
[Result "0-1"]
[Round "01"]
[TimeControl "180+1"]
[Date "2022.06.22"]
[WhiteClock "0:00:01"]
[BlackClock "0:00:48"]

1. e4 {[%clk 0:03:00]}  e5 {[%clk 0:02:57]} 2. Nf3 {[%clk 0:03:00]}  Nc6 {[%clk 0:02:58]} 3. Bb5 {[%clk 0:03:00]}  a6 {[%clk 0:02:57]} 4. Ba4 {[%clk 0:02:59]}  Nf6 {[%clk 0:02:57]} 5. O-O {[%clk 0:02:59]}  b5 {[%clk 0:02:57]} 6. Bb3 {[%clk 0:02:59]}  Bc5 {[%clk 0:02:58]} 7. Re1 {[%clk 0:02:46]}  Ng4 {[%clk 0:02:56]} 8. Rf1 {[%clk 0:02:39]}  O-O {[%clk 0:02:52]} 9. h3 {[%clk 0:02:38]}  Nf6 {[%clk 0:02:49]} 10. Re1 {[%clk 0:02:26]}  d6 {[%clk 0:02:49]} 11. c3 {[%clk 0:02:23]}  Bb6 {[%clk 0:02:48]} 12. d3 {[%clk 0:02:13]}  Ne7 {[%clk 0:02:45]} 13. Nbd2 {[%clk 0:02:09]}  Ng6 {[%clk 0:02:45]} 14. Nf1 {[%clk 0:02:07]}  Re8 {[%clk 0:02:40]} 15. Ng3 {[%clk 0:02:01]}  Be6 {[%clk 0:02:40]} 16. Be3 {[%clk 0:01:58]}  Bxb3 {[%clk 0:02:38]} 17. Qxb3 {[%clk 0:01:56]}  Bxe3 {[%clk 0:02:37]} 18. fxe3 {[%clk 0:01:53]}  c5 {[%clk 0:02:32]} 19. Rf1 {[%clk 0:01:47]}  d5 {[%clk 0:02:28]} 20. exd5 {[%clk 0:01:36]}  Qxd5 {[%clk 0:02:28]} 21. Qxd5 {[%clk 0:01:33]}  Nxd5 {[%clk 0:02:29]} 22. Rae1 {[%clk 0:01:32]}  Nb6 {[%clk 0:02:17]} 23. Ne4 {[%clk 0:01:29]}  Rec8 {[%clk 0:02:12]} 24. Nfg5 {[%clk 0:01:27]}  f6 {[%clk 0:02:09]} 25. Ne6 {[%clk 0:01:23]}  c4 {[%clk 0:01:56]} 26. d4 {[%clk 0:01:21]}  Rc6 {[%clk 0:01:56]} 27. N6c5 {[%clk 0:01:16]}  Re8 {[%clk 0:01:52]} 28. g3 {[%clk 0:01:10]}  a5 {[%clk 0:01:50]} 29. h4 {[%clk 0:01:05]}  Nf8 {[%clk 0:01:42]} 30. Kg2 {[%clk 0:00:49]}  Nfd7 {[%clk 0:01:37]} 31. Nb7 {[%clk 0:00:40]}  a4 {[%clk 0:01:36]} 32. Nbd6 {[%clk 0:00:39]}  Rb8 {[%clk 0:01:34]} 33. Nf5 {[%clk 0:00:17]}  Re6 {[%clk 0:01:23]} 34. h5 {[%clk 0:00:16]}  a3 {[%clk 0:01:18]} 35. bxa3 {[%clk 0:00:13]}  Ra8 {[%clk 0:01:18]} 36. Rf2 {[%clk 0:00:12]}  Rxa3 {[%clk 0:01:18]} 37. Rd1 {[%clk 0:00:09]}  exd4 {[%clk 0:01:04]} 38. Rxd4 {[%clk 0:00:08]}  g6 {[%clk 0:01:03]} 39. Nh6+ {[%clk 0:00:07]}  Kg7 {[%clk 0:01:03]} 40. Ng4 {[%clk 0:00:06]}  f5 {[%clk 0:01:03]} 41. Ng5 {[%clk 0:00:06]}  Re7 {[%clk 0:01:01]} 42. h6+ {[%clk 0:00:07]}  Kg8 {[%clk 0:00:59]} 43. Nh2 {[%clk 0:00:05]}  Rxc3 {[%clk 0:00:58]} 44. e4 {[%clk 0:00:04]}  Rd3 {[%clk 0:00:55]} 45. Rxd3 {[%clk 0:00:04]}  cxd3 {[%clk 0:00:56]} 46. exf5 {[%clk 0:00:05]}  gxf5 {[%clk 0:00:52]} 47. Nhf3 {[%clk 0:00:05]}  Nc4 {[%clk 0:00:51]} 48. Nh3 {[%clk 0:00:03]}  Nde5 {[%clk 0:00:49]} 49. Nf4 {[%clk 0:00:03]}  Nxf3 {[%clk 0:00:49]} 50. Kxf3 {[%clk 0:00:03]}  d2 {[%clk 0:00:49]} 51. Rf1 {[%clk 0:00:01]}  Re1 {[%clk 0:00:48]} 0-1


[Site "https://www.chess.com"]